bitfinex/quotes_SOLUSD_20250219
["timestamp","ask_amount","ask_price","bid_price","bid_amount"]
[1739932897809,5.9276,169.56,169.51,7.73311095]
[1739932901805,0.03,169.56,169.53,21.08195948]
[1739932902122,0.03,169.56,169.55,21.08195948]
[1739932902922,0.03,169.56,169.54,7.67011095]
[1739932903605,0.03,169.56,169.55,13.41184853]
[1739932907021,0.03,169.56,169.55,26.97985948]
[1739932907321,0.03,169.56,169.55,34.78835948]
[1739932907897,0.03,169.56,169.55,188.86680328]
[1739932908209,0.03,169.56,169.55,189.86680328]
[1739932908413,0.03,169.57,169.56,55.90984853]
[1739932908603,0.03,169.57,169.56,93.26040328]
[1739932908927,0.03,169.57,169.56,312.46040328]
[1739932909225,0.03,169.57,169.56,313.46040328]
[1739932909523,0.03,169.57,169.56,314.46040328]
[1739932909826,0.03,169.57,169.56,313.46040328]
[1739932910501,0.03,169.57,169.56,320.35800328]
[1739932910703,0.03,169.69,169.59,56.58]
[1739932910927,0.03,169.69,169.68,7.67011095]
[1739932911129,0.03,169.69,169.66,7.67011095]
[1739932911424,0.03,169.69,169.63,7.67011095]
[1739932911627,82.73,169.69,169.62,1.6181]
[1739932911931,82.73,169.69,169.66,13.41184853]
[1739932912226,7.67011095,169.68,169.64,20.0]
[1739932912525,90.40011095,169.69,169.63,13.41184853]
[1739932913511,7.67011095,169.65,169.59,7.67011095]
[1739932913709,7.67011095,169.65,169.61,20.0]
[1739932913916,7.67011095,169.66,169.61,20.0]
[1739932914114,90.37011095,169.67,169.61,20.0]
[1739932914326,90.37011095,169.67,169.6,41.08195948]
[1739932914527,82.7,169.67,169.63,13.41184853]
[1739932914909,90.37011095,169.67,169.63,13.41184853]
[1739932915231,7.67011095,169.66,169.6,20.0]
[1739932915602,7.67011095,169.66,169.61,13.41184853]
[1739932916232,7.67011095,169.65,169.61,13.41184853]
[1739932916727,82.7,169.67,169.58,80.9]
[1739932916728,7.67011095,169.63,169.58,80.9]
[1739932916901,7.67011095,169.64,169.58,13.41184853]
[1739932919337,7.67011095,169.64,169.58,7.67011095]
[1739932919542,82.7,169.65,169.63,7.67011095]
[1739932919717,82.73,169.69,169.64,7.67011095]
[1739932920040,82.73,169.69,169.64,13.41184853]
[1739932920667,90.40011095,169.69,169.62,7.67011095]
[1739932920936,7.67011095,169.67,169.61,7.67011095]
[1739932921234,7.67011095,169.67,169.61,21.08195948]
[1739932921934,82.73,169.69,169.6,88.57011095]
[1739932921935,7.67011095,169.66,169.6,88.57011095]
[1739932922134,7.67011095,169.67,169.6,7.67011095]
[1739932922439,7.67011095,169.67,169.61,7.67011095]
[1739932922935,90.37011095,169.68,169.61,7.67011095]
[1739932923135,7.67011095,169.67,169.61,7.67011095]
[1739932923531,7.67011095,169.67,169.59,13.41184853]
[1739932923721,7.67011095,169.66,169.59,7.67011095]
[1739932924118,7.67011095,169.66,169.6,13.41184853]
[1739932926339,90.37011095,169.66,169.6,13.41184853]
[1739932927539,82.7,169.66,169.6,7.67011095]
[1739932932333,7.67011095,169.67,169.6,7.67011095]
[1739932932534,0.03,169.68,169.62,21.08195948]
[1739932932734,0.03,169.68,169.64,21.08195948]
[1739932933121,0.03,169.68,169.64,13.41184853]
[1739932933327,7.67011095,169.67,169.6,88.57011095]
[1739932933526,90.37011095,169.67,169.61,13.41184853]
[1739932933743,82.7,169.67,169.61,21.08195948]
[1739932934024,90.37011095,169.67,169.61,13.41184853]
[1739932934444,7.67011095,169.65,169.58,7.67011095]
[1739932934750,7.67011095,169.66,169.6,7.67011095]
[1739932934938,90.37011095,169.67,169.6,7.67011095]
[1739932935139,7.67011095,169.66,169.6,7.67011095]
[1739932936238,7.67011095,169.66,169.59,7.67011095]
[1739932936442,82.7,169.67,169.61,7.67011095]
[1739932936749,82.7,169.67,169.62,13.41184853]
[1739932936949,90.37011095,169.67,169.62,13.41184853]
[1739932937139,7.67011095,169.65,169.59,13.41184853]
[1739932937639,82.7,169.67,169.59,21.08195948]
[1739932937640,7.67011095,169.66,169.59,21.08195948]
[1739932937948,82.7,169.67,169.57,88.63311095]
[1739932937949,7.67011095,169.65,169.57,88.63311095]
[1739932938145,7.67011095,169.63,169.57,80.963]
[1739932938451,7.67011095,169.62,169.57,0.063]
[1739932938840,98.16451095,169.63,169.57,0.063]
[1739932939045,82.7,169.63,169.58,7.67011095]
[1739932939243,82.7,169.63,169.57,0.063]
[1739932939244,82.7,169.63,169.6,13.41184853]
[1739932939750,82.7,169.63,169.58,13.41184853]
[1739932940143,82.7,169.63,169.58,7.67011095]
[1739932941166,82.7,169.63,169.6,21.08195948]
[1739932941372,0.03,169.68,169.62,21.08195948]
[1739932941573,0.03,169.68,169.67,7.67011095]
[1739932942054,0.03,169.68,169.67,21.08195948]
[1739932942432,0.03,169.68,169.67,22.63445948]
[1739932943258,0.03,169.68,169.67,34.44615948]
[1739932943935,0.03,169.68,169.67,22.63445948]
[1739932944337,0.03,169.68,169.67,13.41184853]
[1739932945437,0.03,169.68,169.64,4.56]
[1739932945761,11.99698092,169.68,169.64,4.56]
[1739932945959,11.96698092,169.67,169.6,16.52698092]
[1739932946138,11.96698092,169.66,169.61,13.41184853]
[1739932946537,94.66698092,169.67,169.61,13.41184853]
[1739932950045,94.69698092,169.67,169.61,13.41184853]
[1739932951873,11.96698092,169.66,169.61,13.41184853]
[1739932953474,11.96698092,169.63,169.57,93.643]
[1739932953743,11.96698092,169.63,169.58,13.41184853]
[1739932954056,11.96698092,169.62,169.58,13.41184853]
[1739932954263,100.99238092,169.63,169.58,13.41184853]
[1739932954653,82.7,169.63,169.57,25.44182945]
[1739932954853,82.7,169.63,169.6,13.41184853]
[1739932955848,82.7,169.63,169.58,11.96698092]
[1739932956066,94.66698092,169.63,169.57,13.47484853]
[1739932956255,11.96698092,169.62,169.57,13.47484853]
[1739932956459,11.96698092,169.61,169.57,0.063]
[1739932958457,11.96698092,169.6,169.57,0.063]
[1739932959274,11.96698092,169.61,169.57,0.063]
[1739932962774,11.96698092,169.59,169.57,0.063]
[1739932962964,82.7,169.58,169.57,0.063]
[1739932966559,94.66698092,169.58,169.57,0.063]
[1739932973597,11.96698092,169.58,169.57,0.063]
[1739932973971,12.96698092,169.58,169.57,0.063]
[1739932975486,12.99698092,169.58,169.57,0.063]
[1739932977390,1.03,169.58,169.57,0.063]
[1739932977566,12.99698092,169.58,169.57,0.063]
[1739932978283,25.96396184,169.58,169.57,0.063]
[1739932978585,25.96396184,169.58,169.55,0.063]
[1739932978586,44.93396184,169.56,169.55,0.063]
[1739932978759,50.49396184,169.56,169.55,0.063]
[1739932981993,30.49396184,169.56,169.55,0.063]
[1739932982968,1.0,169.52,169.51,0.063]
[1739932983168,12.96698092,169.52,169.51,0.063]
[1739932983372,19.58288092,169.52,169.51,0.063]
[1739932983572,20.58288092,169.52,169.51,0.063]
[1739932986597,21.0,169.49,169.48,0.063]
[1739932986796,31.96698092,169.49,169.48,0.063]
[1739932988230,32.96698092,169.49,169.48,0.063]
[1739932988499,1.0,169.46,169.45,0.063]
[1739932988675,12.96698092,169.46,169.45,0.063]
[1739932990094,11.96698092,169.42,169.41,0.063]
[1739932990792,2.0,169.41,169.4,0.063]
[1739932990972,33.96698092,169.41,169.4,0.063]
[1739932993205,7.221,169.45,169.4,0.063]
[1739932993383,11.96698092,169.43,169.4,0.063]
[1739932993585,11.96698092,169.44,169.4,0.063]
[1739932993779,16.52698092,169.46,169.4,12.02998092]
[1739932994111,11.96698092,169.48,169.42,11.96698092]
[1739932994605,11.96698092,169.44,169.4,0.063]
[1739932994901,11.96698092,169.42,169.4,0.063]
[1739932995279,11.96698092,169.41,169.4,0.063]
[1739932995901,11.96698092,169.42,169.4,0.063]
[1739932996198,11.96698092,169.43,169.4,0.063]
[1739932996407,11.96698092,169.44,169.4,0.063]
[1739932996913,11.96698092,169.47,169.41,11.96698092]
[1739932997407,11.96698092,169.47,169.41,13.41184853]
[1739932998306,11.96698092,169.46,169.41,13.41184853]
[1739932998516,11.96698092,169.46,169.4,18.41388092]
[1739932998688,11.96698092,169.45,169.4,6.4469]
[1739932999001,82.7,169.44,169.4,6.4469]
[1739932999187,94.66698092,169.44,169.4,6.4469]
[1739932999386,11.96698092,169.42,169.4,0.063]
[1739932999596,82.73,169.41,169.4,0.063]
[1739933000911,11.99698092,169.41,169.4,0.063]
[1739933001079,12.99698092,169.41,169.4,0.063]
[1739933001394,13.99698092,169.41,169.4,0.063]
[1739933002493,2.0,169.4,169.39,0.063]
[1739933002806,33.96698092,169.4,169.39,0.063]
[1739933004108,45.93396184,169.4,169.39,0.063]
[1739933005721,1.0,169.36,169.35,0.063]
[1739933006010,13.96698092,169.36,169.35,0.063]
[1739933006202,27.37882945,169.36,169.35,0.063]
[1739933006708,13.96698092,169.36,169.35,0.063]
[1739933007108,11.96698092,169.36,169.35,0.063]
[1739933007317,12.96698092,169.36,169.35,0.063]
[1739933007814,13.96698092,169.36,169.35,0.063]
[1739933009012,27.37882945,169.36,169.35,0.063]
[1739933009192,110.07882945,169.35,169.34,0.063]
[1739933009393,96.66698092,169.35,169.34,0.063]
[1739933010290,22.0,169.32,169.29,0.063]
[1739933010510,33.96698092,169.32,169.29,0.063]
[1739933011118,36.2748427,169.32,169.29,0.063]
[1739933011624,32.96698092,169.32,169.29,0.063]
[1739933011818,31.96698092,169.32,169.29,0.063]
[1739933013897,11.96698092,169.32,169.29,0.063]
[1739933015210,11.96698092,169.33,169.29,0.063]
[1739933016406,11.96698092,169.32,169.29,0.063]
[1739933020031,12.96698092,169.32,169.29,0.063]
[1739933020218,11.96698092,169.32,169.29,0.063]
[1739933020533,12.96698092,169.32,169.29,0.063]
[1739933020915,11.96698092,169.32,169.29,0.063]
[1739933021723,12.96698092,169.32,169.29,0.063]
[1739933022201,11.96698092,169.32,169.29,0.063]
[1739933022406,12.96698092,169.32,169.29,0.063]
[1739933022919,11.96698092,169.32,169.29,0.063]
[1739933023434,12.96698092,169.32,169.29,0.063]
[1739933023634,11.96698092,169.32,169.29,0.063]
[1739933023810,12.96698092,169.32,169.29,0.063]
[1739933024010,11.96698092,169.32,169.29,0.063]
[1739933024619,12.96698092,169.32,169.29,0.063]
[1739933025429,11.96698092,169.32,169.29,0.063]
[1739933025633,16.52698092,169.32,169.29,0.063]
[1739933029211,11.96698092,169.32,169.29,0.063]
[1739933034732,27.6981813,169.32,169.29,0.063]
[1739933035119,28.6981813,169.32,169.29,0.063]
[1739933035334,27.6981813,169.32,169.29,0.063]
[1739933036158,28.6981813,169.32,169.29,0.063]
[1739933036326,27.6981813,169.32,169.29,0.063]
[1739933042834,7.6981813,169.32,169.29,0.063]
[1739933050151,0.03,169.34,169.29,0.063]
[1739933050354,0.03,169.34,169.29,1.6528]
[1739933050355,7.7281813,169.34,169.29,1.6528]
[1739933051247,7.6981813,169.33,169.29,1.6528]
[1739933051956,7.7281813,169.34,169.29,1.6528]
[1739933053272,7.6981813,169.33,169.29,1.6528]
[1739933057440,7.7281813,169.34,169.29,1.6528]
[1739933058451,7.6981813,169.33,169.29,1.6528]
[1739933059162,7.7281813,169.34,169.29,1.6528]
[1739933060849,0.03,169.34,169.3,13.41184853]
[1739933061175,82.7,169.33,169.31,6.4265]
[1739933064075,82.7,169.33,169.31,14.1246813]
[1739933064361,82.7,169.33,169.32,13.41184853]
[1739933065971,0.03,169.34,169.32,13.41184853]
[1739933066656,0.03,169.34,169.32,21.11002983]
[1739933068073,0.03,169.34,169.33,21.11002983]
[1739933068371,0.03,169.34,169.33,22.65232983]
[1739933069679,0.03,169.34,169.33,28.55792983]
[1739933070088,82.73,169.41,169.34,13.41184853]
[1739933070260,82.73,169.41,169.38,7.6981813]
[1739933070574,82.73,169.41,169.4,7.6981813]
[1739933070804,82.73,169.41,169.4,21.11002983]
[1739933071277,0.03,169.41,169.4,21.11002983]
[1739933075056,0.03,169.41,169.4,24.08797611]
[1739933075258,0.03,169.41,169.4,29.99107611]
[1739933075878,0.03,169.41,169.4,24.08797611]
[1739933076972,0.03,169.41,169.4,29.99107611]
[1739933077275,0.03,169.41,169.4,24.08797611]
[1739933078367,0.03,169.41,169.4,29.99107611]
[1739933078571,82.7,169.48,169.41,13.41184853]
[1739933078762,82.7,169.48,169.45,21.11002983]
[1739933079482,82.7,169.48,169.46,7.6981813]
[1739933079682,4.59,169.51,169.47,7.6981813]
[1739933079683,0.03,169.51,169.47,7.6981813]
[1739933079857,0.03,169.51,169.49,7.6981813]
[1739933081081,0.03,169.51,169.5,13.41184853]
[1739933082397,0.03,169.51,169.5,7.6981813]
[1739933082597,0.03,169.51,169.5,21.11002983]
[1739933083461,0.03,169.51,169.5,27.00972983]
[1739933083677,0.03,169.51,169.5,107.90972983]
[1739933083888,0.03,169.51,169.5,110.56042983]
[1739933084061,0.03,169.51,169.5,109.56042983]
[1739933084677,0.03,169.51,169.5,110.56042983]
[1739933084881,0.03,169.51,169.5,116.47842983]
[1739933085184,0.03,169.56,169.55,13.41184853]
[1739933085378,0.03,169.56,169.55,21.11002983]
[1739933087271,0.03,169.56,169.55,24.08256409]
[1739933088368,0.03,169.56,169.55,25.70246409]
[1739933089587,0.03,169.56,169.55,31.60036409]
[1739933089764,0.03,169.56,169.55,63.39308929]
[1739933089959,0.03,169.56,169.55,71.00568929]
[1739933090181,0.03,169.58,169.57,41.11002983]
[1739933090383,0.03,169.58,169.57,123.01002983]
[1739933091488,0.03,169.58,169.57,122.01002983]
[1739933095767,0.03,169.58,169.57,41.11002983]
[1739933096162,0.03,169.58,169.57,13.41184853]
[1739933096568,0.03,169.58,169.53,7.6981813]
[1739933096769,7.7281813,169.58,169.52,10.71700263]
[1739933097069,7.6981813,169.57,169.52,13.41184853]
[1739933097270,7.6981813,169.57,169.51,13.41184853]
[1739933097585,7.6981813,169.55,169.49,4.54]
[1739933097785,7.6981813,169.55,169.49,13.41184853]
[1739933098483,7.6981813,169.54,169.49,13.41184853]
[1739933098671,94.69258456,169.54,169.49,13.41184853]
[1739933099764,82.7,169.54,169.49,25.40443309]
[1739933100188,82.7,169.54,169.51,13.41184853]
[1739933100392,82.7,169.54,169.52,11.99258456]
[1739933100569,82.7,169.54,169.53,25.40443309]
[1739933100772,82.73,169.58,169.54,13.41184853]
[1739933101076,11.99258456,169.57,169.51,4.54]
[1739933101276,94.69258456,169.56,169.49,11.99258456]
[1739933101474,94.69258456,169.56,169.5,13.41184853]
[1739933101676,94.69258456,169.56,169.51,13.41184853]
[1739933102095,82.7,169.56,169.51,13.41184853]
[1739933102277,94.69258456,169.56,169.5,11.99258456]
[1739933102467,11.99258456,169.54,169.48,11.99258456]
[1739933102672,90.6392,169.56,169.5,25.40443309]
[1739933102867,82.7,169.56,169.51,11.99258456]
[1739933103091,82.7,169.56,169.52,11.99258456]
[1739933103474,82.7,169.56,169.51,12.05558456]
[1739933103777,82.7,169.56,169.52,11.99258456]
[1739933103969,0.03,169.58,169.53,13.41184853]
[1739933104169,0.03,169.58,169.55,13.41184853]
[1739933105490,0.03,169.58,169.55,25.40443309]
[1739933105679,12.02258456,169.58,169.52,11.99258456]
[1739933105869,11.99258456,169.57,169.51,12.05558456]
[1739933106074,11.99258456,169.56,169.51,0.063]
[1739933107091,11.99258456,169.57,169.51,12.05558456]
[1739933107292,0.03,169.58,169.53,11.99258456]
[1739933107476,0.03,169.58,169.54,13.41184853]
[1739933107677,0.03,169.58,169.54,11.99258456]
[1739933107885,0.03,169.58,169.54,13.41184853]
[1739933108694,11.99258456,169.57,169.51,12.05558456]
[1739933108997,12.02258456,169.58,169.51,12.05558456]
[1739933109310,12.02258456,169.58,169.52,13.41184853]
[1739933109475,11.99258456,169.57,169.52,13.41184853]
[1739933109980,11.99258456,169.57,169.51,12.05558456]
[1739933112399,11.99258456,169.57,169.52,13.41184853]
[1739933112901,12.02258456,169.58,169.52,11.99258456]
[1739933113602,94.72258456,169.58,169.53,13.41184853]
[1739933114100,82.73,169.58,169.53,25.40443309]
[1739933114309,82.73,169.58,169.53,11.99258456]
[1739933114806,82.73,169.58,169.52,11.99258456]
[1739933115702,82.73,169.58,169.53,13.41184853]
[1739933117110,82.73,169.58,169.54,13.41184853]
[1739933117409,82.73,169.58,169.53,13.41184853]
[1739933118603,94.72258456,169.58,169.52,13.41184853]
[1739933118805,94.72258456,169.58,169.52,25.40443309]
[1739933118806,82.73,169.58,169.52,25.40443309]
[1739933119810,94.72258456,169.58,169.52,25.40443309]
[1739933120187,82.73,169.58,169.52,25.40443309]
[1739933120382,82.73,169.58,169.53,11.99258456]
[1739933120612,82.73,169.58,169.54,13.41184853]
[1739933121922,0.03,169.58,169.54,13.41184853]
[1739933122209,0.03,169.58,169.57,21.08259354]
[1739933124613,0.03,169.58,169.57,25.39025145]
[1739933124821,0.03,169.58,169.57,13.41184853]
[1739933125025,0.03,169.58,169.55,11.97840292]
[1739933125195,0.03,169.58,169.56,11.97840292]
[1739933125914,0.03,169.58,169.54,13.41184853]
[1739933126112,0.03,169.58,169.57,11.97840292]
[1739933127229,0.03,169.58,169.55,25.39025145]
[1739933127522,0.03,169.58,169.56,11.97840292]
[1739933128529,0.03,169.58,169.54,11.97840292]
[1739933128695,12.00840292,169.58,169.51,97.48140292]
[1739933128900,11.97840292,169.57,169.51,16.58140292]
[1739933129103,11.97840292,169.57,169.51,4.603]
[1739933129302,11.97840292,169.57,169.52,13.41184853]
[1739933133514,94.70840292,169.58,169.52,13.41184853]
[1739933133917,0.03,169.58,169.55,11.97840292]
[1739933134232,0.03,169.58,169.57,13.41184853]
[1739933134751,0.03,169.58,169.57,25.39025145]
[1739933137528,0.03,169.58,169.57,31.28745145]
[1739933137834,0.03,169.58,169.57,38.40455145]
[1739933138539,0.03,169.58,169.57,119.30455145]
[1739933139056,0.03,169.58,169.57,154.80455145]
[1739933139257,82.73,169.67,169.61,20.0]
[1739933139558,0.03,169.67,169.65,13.41184853]
[1739933140358,0.03,169.67,169.64,13.41184853]
[1739933140884,0.03,169.67,169.66,25.39025145]
[1739933141556,0.03,169.67,169.66,109.59537886]
[1739933141744,0.03,169.67,169.66,107.29025145]
[1739933142050,0.03,169.67,169.66,108.29025145]
[1739933142271,0.03,169.67,169.66,110.65997803]
[1739933142473,0.03,169.67,169.66,114.18435145]
[1739933143244,0.03,169.67,169.66,106.29025145]
[1739933144755,0.03,169.67,169.66,13.41184853]
[1739933144946,0.03,169.67,169.62,19.43845109]
[1739933145147,0.03,169.67,169.63,13.41184853]
[1739933145548,0.03,169.67,169.65,11.97840292]
[1739933145757,0.03,169.67,169.66,11.97840292]
[1739933145948,0.03,169.67,169.66,106.29025145]
[1739933146154,0.03,169.67,169.66,107.29025145]
[1739933146347,0.03,169.67,169.66,106.29025145]
[1739933146745,0.03,169.67,169.66,112.18435145]
[1739933146945,0.03,169.67,169.66,115.06818583]
[1739933147279,0.03,169.68,169.67,15.41184853]
[1739933147454,0.03,169.68,169.67,26.39025145]
[1739933147841,0.03,169.68,169.67,25.39025145]
[1739933148680,82.73,169.68,169.62,7.46004817]
[1739933148881,11.97840292,169.67,169.58,80.9]
[1739933149181,82.73,169.68,169.63,11.97840292]
[1739933149382,82.73,169.68,169.65,11.97840292]
[1739933149580,0.03,169.68,169.64,11.97840292]
[1739933149792,0.03,169.68,169.62,11.97840292]
[1739933150293,0.03,169.68,169.63,13.41184853]
[1739933150453,94.70840292,169.68,169.63,13.41184853]
[1739933150653,101.88612216,169.68,169.61,19.15612216]
[1739933150852,101.88612216,169.68,169.62,13.41184853]
[1739933151282,101.88612216,169.68,169.63,13.41184853]
[1739933151682,82.73,169.68,169.64,13.41184853]
[1739933152763,82.73,169.68,169.65,13.41184853]
[1739933152954,0.03,169.68,169.67,32.56797069]
[1739933153482,0.03,169.68,169.67,13.41184853]
[1739933154487,0.03,169.68,169.65,4.54]
[1739933154670,0.03,169.68,169.65,17.95184853]
[1739933154989,0.03,169.68,169.66,13.41184853]
[1739933156490,82.73,169.68,169.63,39.15612216]
[1739933156852,82.73,169.68,169.63,19.15612216]
[1739933157288,82.73,169.68,169.64,13.41184853]
[1739933158176,82.73,169.68,169.65,13.41184853]
[1739933158564,82.73,169.68,169.66,13.41184853]
[1739933161088,0.03,169.68,169.67,13.41184853]
[1739933161393,0.03,169.68,169.67,32.56797069]
[1739933163592,0.03,169.68,169.67,13.41184853]
[1739933163888,0.03,169.68,169.65,19.15612216]
[1739933164389,0.03,169.68,169.65,13.41184853]
[1739933165108,0.03,169.68,169.65,32.56797069]
[1739933165400,0.03,169.68,169.67,13.41184853]
[1739933168168,0.03,169.68,169.67,32.56797069]
[1739933168372,0.03,169.68,169.67,38.46167069]
[1739933168885,0.03,169.68,169.67,32.56797069]
[1739933171988,0.03,169.68,169.67,38.46167069]
[1739933172200,0.03,169.68,169.67,39.46167069]
[1739933172391,0.03,169.68,169.67,40.98427069]
[1739933172997,0.03,169.68,169.67,114.99057069]
[1739933173321,0.03,169.68,169.67,113.46797069]
[1739933174615,0.03,169.68,169.67,106.27496981]
[1739933175211,0.03,169.68,169.67,113.16866981]
[1739933175378,0.03,169.68,169.67,112.16866981]
[1739933175792,0.03,169.68,169.67,113.16866981]
[1739933176006,0.03,169.68,169.67,148.66866981]
[1739933176504,0.03,169.68,169.67,118.08666981]
[1739933176715,0.03,169.68,169.67,119.34238319]
[1739933178383,0.03,169.69,169.67,119.34238319]
[1739933178384,0.03,169.69,169.68,49.91184853]
[1739933178593,0.03,169.69,169.68,69.04868319]
[1739933179200,0.03,169.69,169.68,70.04868319]
[1739933180109,0.03,169.69,169.68,150.94868319]
[1739933180502,0.03,169.69,169.68,156.84208319]
[1739933180717,0.03,169.73,169.72,33.41184853]
[1739933180904,0.03,169.73,169.72,57.08868319]
[1739933182113,0.03,169.73,169.72,62.98068319]
[1739933182883,0.03,169.75,169.73,14.41184853]
[1739933183089,0.03,169.75,169.74,88.18551785]
[1739933183591,0.03,169.75,169.74,89.18551785]
[1739933184414,0.03,169.75,169.74,95.07681785]
[1739933184794,0.03,169.75,169.74,93.07681785]
[1739933185409,0.03,169.75,169.74,95.07681785]
[1739933185709,0.03,169.75,169.74,94.07681785]
[1739933186015,0.03,169.75,169.74,93.07681785]
[1739933186510,0.03,169.75,169.74,38.43998319]
[1739933186719,0.03,169.75,169.74,42.97998319]
[1739933187100,0.03,169.75,169.74,32.54868319]
[1739933188813,0.03,169.75,169.74,57.57681785]
[1739933189400,0.03,169.75,169.74,58.57681785]
[1739933190025,82.7,169.82,169.74,94.07681785]
[1739933190327,0.03,169.85,169.82,13.41184853]
[1739933190500,0.03,169.85,169.82,32.54868319]
[1739933191399,0.03,169.85,169.84,13.41184853]
[1739933192936,0.03,169.85,169.83,13.41184853]
[1739933194910,0.03,169.85,169.84,13.41184853]
[1739933195197,0.03,169.85,169.84,32.54868319]
[1739933196828,0.03,169.85,169.84,17.82719316]
[1739933197022,0.03,169.85,169.84,31.23904169]
[1739933197330,0.03,169.85,169.84,37.14404169]
[1739933197814,0.03,169.85,169.84,31.25624169]
[1739933198016,0.03,169.85,169.84,37.14404169]
[1739933198401,0.03,169.92,169.9,13.41184853]
[1739933198631,0.03,169.92,169.91,25.35124169]
[1739933199141,0.03,169.92,169.91,13.41184853]
[1739933199439,0.03,169.92,169.88,16.47939316]
[1739933199600,0.03,169.92,169.89,13.41184853]
[1739933200025,0.03,169.92,169.89,25.35124169]
[1739933201103,0.03,169.92,169.9,11.93939316]
[1739933201307,0.03,169.92,169.91,11.93939316]
[1739933203632,0.03,169.92,169.9,11.93939316]
[1739933203806,0.03,169.92,169.89,25.35124169]
[1739933204416,0.03,169.92,169.89,13.41184853]
[1739933205240,0.03,169.92,169.9,11.93939316]
[1739933205418,0.03,169.92,169.89,25.35124169]
[1739933206355,0.03,169.92,169.89,13.41184853]
[1739933209422,0.03,169.92,169.89,11.93939316]
[1739933209849,0.03,169.92,169.91,13.41184853]
[1739933210648,0.03,169.92,169.91,25.35124169]
[1739933210960,0.03,169.92,169.91,13.41184853]
[1739933211823,11.96939316,169.92,169.86,14.94590893]
[1739933212138,94.66939316,169.92,169.85,15.02229608]
[1739933212540,94.66939316,169.92,169.86,13.41184853]
[1739933212741,94.66939316,169.92,169.88,11.93939316]
[1739933212742,82.73,169.92,169.88,11.93939316]
[1739933212947,82.73,169.92,169.89,11.93939316]
[1739933213427,82.73,169.92,169.9,13.41184853]
[1739933213625,0.03,169.92,169.9,11.93939316]
[1739933213823,0.03,169.92,169.91,25.35124169]
[1739933215720,0.03,169.92,169.91,13.41184853]
[1739933216548,0.03,169.92,169.86,11.93939316]
[1739933216742,11.93939316,169.91,169.85,4.583]
[1739933216943,94.66939316,169.92,169.85,16.52239316]
[1739933217134,94.66939316,169.92,169.86,13.41184853]
[1739933217338,11.93939316,169.91,169.86,13.41184853]
[1739933217545,11.93939316,169.91,169.85,13.47484853]
[1739933218549,94.63939316,169.9,169.85,0.063]
[1739933218749,82.7,169.9,169.85,0.063]
[1739933218956,82.7,169.9,169.85,25.41424169]
[1739933219562,82.7,169.9,169.88,11.93939316]
[1739933219944,82.7,169.9,169.86,11.93939316]
[1739933220327,94.63939316,169.9,169.85,0.063]
[1739933220527,11.93939316,169.89,169.85,0.063]
[1739933221257,11.93939316,169.86,169.85,0.063]
[1739933221837,11.93939316,169.86,169.78,93.44]
[1739933222036,11.93939316,169.82,169.79,13.41184853]
[1739933222358,11.93939316,169.82,169.77,13.41184853]
[1739933224770,11.93939316,169.83,169.77,13.41184853]
[1739933226976,11.93939316,169.82,169.77,13.41184853]
[1739933227845,11.93939316,169.8,169.75,0.063]
[1739933228043,11.93939316,169.77,169.75,0.063]
[1739933229153,94.63939316,169.76,169.75,0.063]
[1739933230644,11.93939316,169.76,169.75,0.063]
[1739933233193,14.91501608,169.76,169.75,0.063]
[1739933234397,15.91501608,169.76,169.75,0.063]
[1739933234578,1.0,169.74,169.68,0.063]
[1739933234886,11.93939316,169.69,169.68,0.063]
[1739933235088,94.63939316,169.69,169.68,0.063]
[1739933235594,82.7,169.69,169.68,0.063]
[1739933236305,94.63939316,169.69,169.68,0.063]
[1739933237595,82.7,169.69,169.68,0.063]
[1739933238274,11.93939316,169.69,169.68,0.063]